[Event "Blixt-SM 2025"]
[Site "Norrköping, Sweden"]
[Date "2025.09.26"]
[Round "1.1"]
[White "Ravik, Andreas"]
[Black "Seo, Jung Min"]
[Result "0-1"]
[TimeControl "3 min + 2 sec/move"]
[BlackTitle "IM"]
[WhiteElo "1992"]
[BlackElo "2480"]

1. e4 {[%clk 00:03:03]} g6 {[%clk 00:03:01]} {[%emt 00:00:03]} 2. d4 {[%clk
00:03:03]} {[%emt 00:00:01]} Bg7 {[%clk 00:03:02]} {[%emt 00:00:02]} 3. Nf3
{[%clk 00:03:04]} {[%emt 00:00:01]} a6 {[%clk 00:03:03]} 4. c4 {[%clk
00:03:02]} {[%emt 00:00:04]} d6 {[%clk 00:03:04]} 5. Nc3 {[%clk 00:03:02]}
{[%emt 00:00:02]} Bg4 {[%clk 00:03:03]} {[%emt 00:00:02]} 6. Be2 {[%clk
00:03:02]} {[%emt 00:00:02]} Nc6 {[%clk 00:03:03]} {[%emt 00:00:03]} 7. Be3
{[%clk 00:02:58]} {[%emt 00:00:06]} e5 {[%clk 00:02:54]} {[%emt 00:00:11]} 8.
d5 {[%clk 00:02:44]} {[%emt 00:00:16]} Bxf3 {[%clk 00:02:54]} {[%emt 00:00:02]}
9. Bxf3 {[%clk 00:02:37]} {[%emt 00:00:09]} Nd4 {[%clk 00:02:55]} {[%emt
00:00:02]} 10. Bxd4 {[%clk 00:02:22]} {[%emt 00:00:17]} exd4 {[%clk 00:02:55]}
{[%emt 00:00:02]} 11. Ne2 {[%clk 00:02:19]} {[%emt 00:00:05]} Qf6 {[%clk
00:02:54]} {[%emt 00:00:02]} 12. O-O {[%clk 00:02:16]} {[%emt 00:00:06]} Ne7
{[%clk 00:02:52]} {[%emt 00:00:03]} 13. Qd2 {[%clk 00:02:04]} {[%emt 00:00:15]}
O-O {[%clk 00:02:44]} {[%emt 00:00:10]} 14. Rfe1 {[%clk 00:01:54]} {[%emt
00:00:12]} c5 {[%clk 00:02:25]} {[%emt 00:00:21]} 15. Nc1 {[%clk 00:01:41]}
{[%emt 00:00:15]} b5 {[%clk 00:02:22]} {[%emt 00:00:05]} 16. b3 {[%clk
00:01:41]} {[%emt 00:00:02]} Nc8 {[%clk 00:01:48]} {[%emt 00:00:36]} 17. Nd3
{[%clk 00:01:40]} {[%emt 00:00:03]} Nb6 {[%clk 00:01:44]} {[%emt 00:00:07]} 18.
cxb5 {[%clk 00:01:27]} {[%emt 00:00:15]} axb5 {[%clk 00:01:45]} {[%emt
00:00:01]} 19. e5 {[%clk 00:01:23]} {[%emt 00:00:06]} dxe5 {[%clk 00:01:46]} 20.
Nxe5 {[%clk 00:01:23]} {[%emt 00:00:02]} Qd6 {[%clk 00:01:38]} {[%emt
00:00:09]} 21. Nc6 {[%clk 00:01:00]} {[%emt 00:00:26]} Rae8 {[%clk 00:01:00]}
{[%emt 00:00:39]} 22. Rac1 {[%clk 00:00:53]} {[%emt 00:00:08]} Nxd5 {[%clk
00:00:47]} {[%emt 00:00:16]} 23. Bxd5 {[%clk 00:00:54]} {[%emt 00:00:01]} Qxd5
{[%clk 00:00:49]} 24. Ne7+ {[%clk 00:00:51]} {[%emt 00:00:05]} Rxe7 {[%clk
00:00:49]} {[%emt 00:00:01]} 25. Rxe7 {[%clk 00:00:52]} {[%emt 00:00:02]} c4
{[%clk 00:00:51]} {[%emt 00:00:01]} 26. bxc4 {[%clk 00:00:45]} {[%emt
00:00:09]} bxc4 {[%clk 00:00:52]} 27. Rc7 {[%clk 00:00:46]} {[%emt 00:00:01]}
c3 {[%clk 00:00:43]} {[%emt 00:00:11]} 28. R7xc3 {[%clk 00:00:47]} {[%emt
00:00:01]} Qa5 {[%clk 00:00:45]} 29. R3c2 {[%clk 00:00:47]} {[%emt 00:00:02]}
Qxd2 {[%clk 00:00:44]} {[%emt 00:00:03]} 30. Rxd2 {[%clk 00:00:48]} Bh6 {[%clk
00:00:45]} 31. Rcd1 {[%clk 00:00:46]} {[%emt 00:00:03]} Bxd2 {[%clk 00:00:45]}
{[%emt 00:00:02]} 32. Rxd2 {[%clk 00:00:48]} Rc8 {[%clk 00:00:40]} {[%emt
00:00:08]} 33. Kf1 {[%clk 00:00:48]} {[%emt 00:00:02]} Rc4 {[%clk 00:00:38]}
{[%emt 00:00:04]} 34. Ke2 {[%clk 00:00:49]} {[%emt 00:00:02]} Kg7 {[%clk
00:00:38]} {[%emt 00:00:01]} 35. Kd3 {[%clk 00:00:50]} Ra4 {[%clk 00:00:39]} 36.
Ke4 {[%clk 00:00:44]} {[%emt 00:00:07]} Kf6 {[%clk 00:00:39]} {[%emt 00:00:02]}
37. f4 {[%clk 00:00:41]} {[%emt 00:00:05]} h5 {[%clk 00:00:40]} {[%emt
00:00:02]} 38. h3 {[%clk 00:00:42]} h4 {[%clk 00:00:40]} {[%emt 00:00:01]} 39.
Rb2 {[%clk 00:00:39]} {[%emt 00:00:06]} Ke7 {[%clk 00:00:33]} {[%emt 00:00:09]}
40. Rb7+ {[%clk 00:00:37]} {[%emt 00:00:04]} Ke6 {[%clk 00:00:35]} 41. Rb6+
{[%clk 00:00:38]} Ke7 {[%clk 00:00:30]} {[%emt 00:00:06]} 42. Rb7+ {[%clk
00:00:39]} {[%emt 00:00:01]} Kf6 {[%clk 00:00:32]} 43. Rb6+ {[%clk 00:00:39]}
{[%emt 00:00:02]} Kg7 {[%clk 00:00:32]} 44. Rb2 {[%clk 00:00:36]} {[%emt
00:00:05]} Rc4 {[%clk 00:00:21]} {[%emt 00:00:13]} 45. Rd2 {[%clk 00:00:36]}
{[%emt 00:00:02]} Ra4 {[%clk 00:00:22]} {[%emt 00:00:02]} 46. Rb2 {[%clk
00:00:36]} Kh6 {[%clk 00:00:17]} {[%emt 00:00:07]} 47. Rf2 {[%clk 00:00:37]}
{[%emt 00:00:02]} f5+ {[%clk 00:00:16]} {[%emt 00:00:03]} 48. Kd3 {[%clk
00:00:36]} {[%emt 00:00:02]} Kg7 {[%clk 00:00:14]} {[%emt 00:00:04]} 49. Rb2
{[%clk 00:00:37]} Kf6 {[%clk 00:00:14]} {[%emt 00:00:03]} 50. Rb6+ {[%clk
00:00:38]} Kf7 {[%clk 00:00:15]} 51. Rb7+ {[%clk 00:00:39]} {[%emt 00:00:01]}
Kf6 {[%clk 00:00:13]} {[%emt 00:00:04]} 52. Rb6+ {[%clk 00:00:40]} Kg7 {[%clk
00:00:15]} 53. Rb7+ {[%clk 00:00:42]} Kh6 {[%clk 00:00:16]} 54. Rb2 {[%clk
00:00:42]} g5 {[%clk 00:00:16]} {[%emt 00:00:02]} 55. fxg5+ {[%clk 00:00:39]}
{[%emt 00:00:06]} Kxg5 {[%clk 00:00:17]} 56. Rf2 {[%clk 00:00:39]} {[%emt
00:00:02]} Kf6 {[%clk 00:00:16]} {[%emt 00:00:04]} 57. Rb2 {[%clk 00:00:35]}
{[%emt 00:00:06]} Ke5 {[%clk 00:00:17]} {[%emt 00:00:01]} 58. Rf2 {[%clk
00:00:35]} {[%emt 00:00:02]} Ra3+ {[%clk 00:00:17]} {[%emt 00:00:01]} 59. Kc4
{[%clk 00:00:33]} {[%emt 00:00:04]} Ke4 {[%clk 00:00:12]} {[%emt 00:00:07]} 60.
Rd2 {[%clk 00:00:32]} {[%emt 00:00:04]} Rc3+ {[%clk 00:00:11]} {[%emt
00:00:02]} 61. Kb4 {[%clk 00:00:33]} {[%emt 00:00:02]} Ke3 {[%clk 00:00:11]}
{[%emt 00:00:02]} 62. Rb2 {[%clk 00:00:29]} {[%emt 00:00:06]} Rc8 {[%clk
00:00:12]} {[%emt 00:00:02]} 63. a4 {[%clk 00:00:19]} {[%emt 00:00:12]} d3
{[%clk 00:00:12]} {[%emt 00:00:01]} 64. a5 {[%clk 00:00:18]} {[%emt 00:00:03]}
Rb8+ {[%clk 00:00:12]} {[%emt 00:00:02]} 65. Ka3 {[%clk 00:00:19]} Rxb2 {[%clk
00:00:13]} {[%emt 00:00:01]} 66. Kxb2 {[%clk 00:00:21]} d2 {[%clk 00:00:14]} 67.
a6 {[%clk 00:00:20]} {[%emt 00:00:02]} d1=Q {[%clk 00:00:13]} {[%emt 00:00:03]}
0-1

[Event "Blixt-SM 2025"]
[Site "Norrköping, Sweden"]
[Date "2025.09.26"]
[Round "2.7"]
[White "Bergdahl, Daniel"]
[Black "Nygren, Kim"]
[Result "0-1"]
[TimeControl "3 min + 2 sec/move"]
[BlackTitle "CM"]
[WhiteElo "1864"]
[BlackElo "2173"]

1. e4 {[%clk 00:03:03]} c5 {[%clk 00:03:03]} {[%emt 00:00:01]} 2. Nf3 {[%clk
00:03:04]} {[%emt 00:00:01]} d6 {[%clk 00:03:04]} 3. c3 {[%clk 00:03:05]}
{[%emt 00:00:02]} g6 {[%clk 00:03:02]} {[%emt 00:00:03]} 4. Be2 {[%clk
00:03:04]} {[%emt 00:00:03]} Bg7 {[%clk 00:03:03]} {[%emt 00:00:02]} 5. O-O
{[%clk 00:03:04]} {[%emt 00:00:01]} Nd7 {[%clk 00:03:04]} {[%emt 00:00:03]} 6.
d4 {[%clk 00:03:05]} Ngf6 {[%clk 00:03:01]} {[%emt 00:00:05]} 7. Bd3 {[%clk
00:02:56]} {[%emt 00:00:10]} O-O {[%clk 00:02:53]} {[%emt 00:00:10]} 8. Re1
{[%clk 00:02:57]} {[%emt 00:00:01]} Ne8 {[%clk 00:02:48]} {[%emt 00:00:08]} 9.
Bc2 {[%clk 00:02:48]} {[%emt 00:00:10]} b5 {[%clk 00:02:42]} {[%emt 00:00:09]}
10. Be3 {[%clk 00:02:38]} {[%emt 00:00:11]} cxd4 {[%clk 00:02:38]} {[%emt
00:00:07]} 11. Nxd4 {[%clk 00:02:27]} {[%emt 00:00:13]} Ne5 {[%clk 00:02:29]}
{[%emt 00:00:10]} 12. Nxb5 {[%clk 00:02:16]} {[%emt 00:00:12]} Nc4 {[%clk
00:02:26]} {[%emt 00:00:05]} 13. Nd4 {[%clk 00:02:04]} {[%emt 00:00:15]} Nxb2
{[%clk 00:02:11]} {[%emt 00:00:18]} 14. Qe2 {[%clk 00:01:56]} {[%emt 00:00:08]}
Bd7 {[%clk 00:01:34]} {[%emt 00:00:41]} 15. Bc1 {[%clk 00:01:29]} {[%emt
00:00:28]} Na4 {[%clk 00:01:34]} {[%emt 00:00:02]} 16. Bb3 {[%clk 00:00:46]}
{[%emt 00:00:45]} Nc5 {[%clk 00:01:33]} {[%emt 00:00:04]} 17. Bd5 {[%clk
00:00:45]} {[%emt 00:00:03]} Rc8 {[%clk 00:01:28]} {[%emt 00:00:06]} 18. f4
{[%clk 00:00:33]} {[%emt 00:00:14]} e6 {[%clk 00:01:19]} {[%emt 00:00:11]} 19.
Bb3 {[%clk 00:00:32]} {[%emt 00:00:04]} Qb6 {[%clk 00:01:12]} {[%emt 00:00:08]}
20. Be3 {[%clk 00:00:26]} {[%emt 00:00:08]} Qb7 {[%clk 00:01:13]} {[%emt
00:00:01]} 21. Nd2 {[%clk 00:00:25]} {[%emt 00:00:03]} Nxe4 {[%clk 00:01:05]}
{[%emt 00:00:11]} 22. Qf3 {[%clk 00:00:17]} {[%emt 00:00:10]} d5 {[%clk
00:00:58]} {[%emt 00:00:09]} 23. Rac1 {[%clk 00:00:08]} {[%emt 00:00:11]} N8d6
{[%clk 00:00:56]} {[%emt 00:00:03]} 24. Qe2 {[%clk 00:00:08]} {[%emt 00:00:02]}
Nxc3 {[%clk 00:00:49]} {[%emt 00:00:09]} 25. Qd3 {[%clk 00:00:07]} {[%emt
00:00:02]} Nce4 {[%clk 00:00:46]} {[%emt 00:00:06]} 26. Rxc8 {[%clk 00:00:07]}
{[%emt 00:00:02]} Rxc8 {[%clk 00:00:47]} {[%emt 00:00:02]} 27. Nxe4 {[%clk
00:00:08]} {[%emt 00:00:01]} Nxe4 {[%clk 00:00:41]} {[%emt 00:00:08]} 28. Nf3
{[%clk 00:00:07]} {[%emt 00:00:02]} Bb5 {[%clk 00:00:38]} {[%emt 00:00:05]} 29.
Qd1 {[%clk 00:00:07]} {[%emt 00:00:02]} h6 {[%clk 00:00:24]} {[%emt 00:00:16]}
30. Bd4 {[%clk 00:00:09]} Bxd4+ {[%clk 00:00:22]} {[%emt 00:00:04]} 31. Qxd4
{[%clk 00:00:09]} Qb6 {[%clk 00:00:21]} {[%emt 00:00:03]} 32. Qxb6 {[%clk
00:00:09]} {[%emt 00:00:02]} axb6 {[%clk 00:00:22]} 33. Nd4 {[%clk 00:00:09]}
{[%emt 00:00:02]} Bd7 {[%clk 00:00:16]} {[%emt 00:00:08]} 34. g4 {[%clk
00:00:10]} {[%emt 00:00:01]} Kg7 {[%clk 00:00:14]} {[%emt 00:00:05]} 35. f5
{[%clk 00:00:11]} gxf5 {[%clk 00:00:14]} {[%emt 00:00:02]} 36. gxf5 {[%clk
00:00:12]} Kf6 {[%clk 00:00:14]} {[%emt 00:00:02]} 37. fxe6 {[%clk 00:00:13]}
fxe6 {[%clk 00:00:15]} 38. Rf1+ {[%clk 00:00:14]} {[%emt 00:00:02]} Ke7 {[%clk
00:00:15]} {[%emt 00:00:02]} 39. Re1 {[%clk 00:00:09]} {[%emt 00:00:07]} Rg8+
{[%clk 00:00:15]} {[%emt 00:00:02]} 40. Kf1 {[%clk 00:00:10]} {[%emt 00:00:02]}
e5 {[%clk 00:00:11]} {[%emt 00:00:07]} 41. Rxe4 {[%clk 00:00:10]} {[%emt
00:00:01]} Rf8+ {[%clk 00:00:09]} {[%emt 00:00:04]} 42. Ke2 {[%clk 00:00:04]}
{[%emt 00:00:08]} dxe4 {[%clk 00:00:10]} {[%emt 00:00:02]} 43. Nc2 {[%clk
00:00:04]} {[%emt 00:00:02]} Bb5+ {[%clk 00:00:10]} {[%emt 00:00:01]} 44. Ke3
{[%clk 00:00:05]} Bd3 {[%clk 00:00:11]} {[%emt 00:00:02]} 45. Nb4 {[%clk
00:00:06]} {[%emt 00:00:01]} Kd6 {[%clk 00:00:11]} {[%emt 00:00:01]} 46. Nxd3
{[%clk 00:00:07]} {[%emt 00:00:02]} exd3 {[%clk 00:00:12]} 47. Kxd3 {[%clk
00:00:08]} {[%emt 00:00:01]} Rf3+ {[%clk 00:00:13]} 48. Ke4 {[%clk 00:00:09]}
Rf4+ {[%clk 00:00:14]} 49. Ke3 {[%clk 00:00:11]} Rh4 {[%clk 00:00:15]} 0-1

[Event "Blixt-SM 2025"]
[Site "Norrköping, Sweden"]
[Date "2025.09.26"]
[Round "4.3"]
[White "Muntean, Victor"]
[Black "Nygren, Kim"]
[Result "0-1"]
[TimeControl "3 min + 2 sec/move"]
[BlackTitle "CM"]
[WhiteElo "2151"]
[BlackElo "2173"]

1. e4 {[%clk 00:03:03]} c5 {[%clk 00:03:03]} {[%emt 00:00:02]} 2. c3 {[%clk
00:03:04]} g6 {[%clk 00:03:01]} {[%emt 00:00:05]} 3. d4 {[%clk 00:03:05]} Bg7
{[%clk 00:03:01]} {[%emt 00:00:01]} 4. Nf3 {[%clk 00:03:00]} {[%emt 00:00:07]}
Nf6 {[%clk 00:02:51]} {[%emt 00:00:12]} 5. e5 {[%clk 00:02:40]} {[%emt
00:00:22]} Nd5 {[%clk 00:02:42]} {[%emt 00:00:12]} 6. c4 {[%clk 00:02:26]}
{[%emt 00:00:16]} Nc7 {[%clk 00:02:38]} {[%emt 00:00:05]} 7. Be3 {[%clk
00:02:00]} {[%emt 00:00:28]} cxd4 {[%clk 00:02:35]} {[%emt 00:00:05]} 8. Bxd4
{[%clk 00:02:01]} {[%emt 00:00:02]} Ne6 {[%clk 00:02:36]} 9. Nc3 {[%clk
00:01:59]} {[%emt 00:00:04]} Nc6 {[%clk 00:02:30]} {[%emt 00:00:07]} 10. Be3
{[%clk 00:01:48]} {[%emt 00:00:13]} Nxe5 {[%clk 00:02:11]} {[%emt 00:00:22]} 11.
Nxe5 {[%clk 00:01:49]} Bxe5 {[%clk 00:02:12]} 12. Be2 {[%clk 00:01:33]} {[%emt
00:00:18]} Bxc3+ {[%clk 00:02:04]} {[%emt 00:00:10]} 13. bxc3 {[%clk 00:01:34]}
O-O {[%clk 00:02:01]} {[%emt 00:00:05]} 14. h4 {[%clk 00:01:33]} {[%emt
00:00:03]} Qa5 {[%clk 00:02:00]} {[%emt 00:00:03]} 15. Qd2 {[%clk 00:01:25]}
{[%emt 00:00:10]} b5 {[%clk 00:01:45]} {[%emt 00:00:16]} 16. h5 {[%clk
00:01:03]} {[%emt 00:00:24]} bxc4 {[%clk 00:01:38]} {[%emt 00:00:09]} 17. hxg6
{[%clk 00:01:04]} {[%emt 00:00:01]} fxg6 {[%clk 00:01:38]} {[%emt 00:00:02]} 18.
Bxc4 {[%clk 00:00:59]} {[%emt 00:00:07]} Qe5 {[%clk 00:01:24]} {[%emt
00:00:16]} 19. Kf1 {[%clk 00:00:56]} {[%emt 00:00:06]} Bb7 {[%clk 00:01:21]}
{[%emt 00:00:05]} 20. Bd4 {[%clk 00:00:41]} {[%emt 00:00:17]} Qg3 {[%clk
00:01:00]} {[%emt 00:00:23]} 21. Rg1 {[%clk 00:00:13]} {[%emt 00:00:30]} Rac8
{[%clk 00:00:40]} {[%emt 00:00:22]} 22. Bxe6+ {[%clk 00:00:10]} {[%emt
00:00:04]} dxe6 {[%clk 00:00:35]} {[%emt 00:00:07]} 23. Rb1 {[%clk 00:00:08]}
{[%emt 00:00:04]} Ba6+ {[%clk 00:00:24]} {[%emt 00:00:14]} 24. Ke1 {[%clk
00:00:09]} {[%emt 00:00:01]} Qg4 {[%clk 00:00:19]} {[%emt 00:00:07]} 25. Qe3
{[%clk 00:00:05]} {[%emt 00:00:05]} Rf4 {[%clk 00:00:13]} {[%emt 00:00:08]} 26.
f3 {[%clk 00:00:06]} Qf5 {[%clk 00:00:13]} {[%emt 00:00:02]} 27. g4 {[%clk
00:00:05]} {[%emt 00:00:04]} Qxb1+ {[%clk 00:00:13]} {[%emt 00:00:01]} 28. Kf2
{[%clk 00:00:06]} Qxa2+ {[%clk 00:00:10]} {[%emt 00:00:05]} 29. Kg3 {[%clk
00:00:07]} Rf7 {[%clk 00:00:10]} {[%emt 00:00:02]} 30. Qe5 {[%clk 00:00:04]}
{[%emt 00:00:05]} Rf6 {[%clk 00:00:08]} {[%emt 00:00:04]} 31. Qe3 {[%clk
00:00:03]} {[%emt 00:00:04]} Bb7 {[%clk 00:00:09]} {[%emt 00:00:01]} 32. Bxf6
{[%clk 00:00:03]} {[%emt 00:00:02]} exf6 {[%clk 00:00:08]} {[%emt 00:00:03]} 33.
Rd1 {[%clk 00:00:04]} Bd5 {[%clk 00:00:07]} {[%emt 00:00:02]} 34. Rxd5 {[%clk
00:00:05]} {[%emt 00:00:02]} Qxd5 {[%clk 00:00:08]} 35. Qxa7 {[%clk 00:00:06]}
{[%emt 00:00:01]} Qe5+ {[%clk 00:00:09]} 36. Kh3 {[%clk 00:00:07]} {[%emt
00:00:01]} Rd8 {[%clk 00:00:09]} {[%emt 00:00:02]} 37. c4 {[%clk 00:00:08]}
{[%emt 00:00:02]} h5 {[%clk 00:00:09]} {[%emt 00:00:01]} 38. gxh5 {[%clk
00:00:08]} {[%emt 00:00:02]} Qxh5+ {[%clk 00:00:10]} 39. Kg3 {[%clk 00:00:10]}
Qg5+ {[%clk 00:00:11]} 40. Kh3 {[%clk 00:00:11]} Rf8 {[%clk 00:00:13]} {[%emt
00:00:02]} 41. Qe7 {[%clk 00:00:12]} {[%emt 00:00:01]} Qf5+ {[%clk 00:00:13]}
{[%emt 00:00:02]} 42. Kg3 {[%clk 00:00:13]} {[%emt 00:00:01]} e5 {[%clk
00:00:14]} 43. c5 {[%clk 00:00:14]} Qf4+ {[%clk 00:00:15]} {[%emt 00:00:01]} 44.
Kf2 {[%clk 00:00:15]} Qd4+ {[%clk 00:00:15]} {[%emt 00:00:01]} 45. Kg3 {[%clk
00:00:16]} {[%emt 00:00:01]} Rf7 {[%clk 00:00:16]} {[%emt 00:00:02]} 46. Qe8+
{[%clk 00:00:16]} {[%emt 00:00:02]} Kg7 {[%clk 00:00:17]} 47. c6 {[%clk
00:00:18]} Qf4+ {[%clk 00:00:18]} {[%emt 00:00:01]} 48. Kg2 {[%clk 00:00:19]}
e4 {[%clk 00:00:16]} {[%emt 00:00:03]} 49. fxe4 {[%clk 00:00:19]} {[%emt
00:00:02]} Qe5 {[%clk 00:00:15]} {[%emt 00:00:03]} 50. Qd8 {[%clk 00:00:19]}
{[%emt 00:00:03]} Qxe4+ {[%clk 00:00:15]} {[%emt 00:00:03]} 0-1

[Event "Blixt-SM 2025"]
[Site "Norrköping, Sweden"]
[Date "2025.09.26"]
[Round "5.9"]
[White "Karlsson, Stefan 2005"]
[Black "Fors, Klas"]
[Result "1-0"]
[TimeControl "3 min + 2 sec/move"]
[WhiteElo "2112"]
[BlackElo "2063"]

1. d3 {[%clk 00:03:00]} {[%emt 00:00:03]} d5 {[%clk 00:03:02]} {[%emt
00:00:03]} 2. Nf3 {[%clk 00:03:01]} {[%emt 00:00:02]} Nf6 {[%clk 00:03:02]}
{[%emt 00:00:02]} 3. g3 {[%clk 00:03:02]} g6 {[%clk 00:03:01]} {[%emt
00:00:02]} 4. Bg2 {[%clk 00:03:03]} Bg7 {[%clk 00:03:02]} {[%emt 00:00:02]} 5.
O-O {[%clk 00:03:03]} {[%emt 00:00:02]} O-O {[%clk 00:03:02]} {[%emt 00:00:02]}
6. c3 {[%clk 00:02:46]} {[%emt 00:00:19]} c5 {[%clk 00:03:01]} {[%emt
00:00:04]} 7. Bf4 {[%clk 00:02:33]} {[%emt 00:00:13]} Nc6 {[%clk 00:02:53]}
{[%emt 00:00:12]} 8. Ne5 {[%clk 00:02:33]} Nxe5 {[%clk 00:02:34]} {[%emt
00:00:21]} 9. Bxe5 {[%clk 00:02:34]} {[%emt 00:00:02]} e6 {[%clk 00:02:21]}
{[%emt 00:00:15]} 10. c4 {[%clk 00:02:21]} {[%emt 00:00:15]} Bd7 {[%clk
00:02:12]} {[%emt 00:00:11]} 11. cxd5 {[%clk 00:02:14]} {[%emt 00:00:09]} Nxd5
{[%clk 00:02:08]} {[%emt 00:00:06]} 12. Bxg7 {[%clk 00:02:13]} {[%emt
00:00:02]} Kxg7 {[%clk 00:02:09]} {[%emt 00:00:02]} 13. d4 {[%clk 00:02:04]}
{[%emt 00:00:11]} cxd4 {[%clk 00:01:42]} {[%emt 00:00:30]} 14. Qxd4+ {[%clk
00:02:04]} {[%emt 00:00:01]} Qf6 {[%clk 00:01:41]} {[%emt 00:00:03]} 15. Rd1
{[%clk 00:01:43]} {[%emt 00:00:23]} Bc6 {[%clk 00:01:39]} {[%emt 00:00:04]} 16.
Na3 {[%clk 00:01:23]} {[%emt 00:00:22]} Rfd8 {[%clk 00:01:13]} {[%emt
00:00:28]} 17. e4 {[%clk 00:01:04]} {[%emt 00:00:21]} Nb6 {[%clk 00:01:06]}
{[%emt 00:00:09]} 18. Qb4 {[%clk 00:00:50]} {[%emt 00:00:16]} Rxd1+ {[%clk
00:01:02]} {[%emt 00:00:06]} 19. Rxd1 {[%clk 00:00:51]} {[%emt 00:00:01]} Rd8
{[%clk 00:00:58]} {[%emt 00:00:04]} 20. Re1 {[%clk 00:00:37]} {[%emt 00:00:17]}
Qd4 {[%clk 00:00:57]} {[%emt 00:00:04]} 21. Qa5 {[%clk 00:00:26]} {[%emt
00:00:13]} Qd2 {[%clk 00:00:47]} {[%emt 00:00:12]} 22. Qxd2 {[%clk 00:00:13]}
{[%emt 00:00:16]} Rxd2 {[%clk 00:00:48]} 23. Rb1 {[%clk 00:00:04]} {[%emt
00:00:11]} e5 {[%clk 00:00:48]} {[%emt 00:00:01]} 24. f3 {[%clk 00:00:03]}
{[%emt 00:00:04]} Kf6 {[%clk 00:00:44]} {[%emt 00:00:05]} 25. Bf1 {[%clk
00:00:04]} Ke7 {[%clk 00:00:43]} {[%emt 00:00:04]} 26. Nc4 {[%clk 00:00:06]}
Nxc4 {[%clk 00:00:43]} {[%emt 00:00:03]} 27. Bxc4 {[%clk 00:00:07]} b5 {[%clk
00:00:41]} {[%emt 00:00:04]} 28. Bf1 {[%clk 00:00:06]} {[%emt 00:00:03]} b4
{[%clk 00:00:41]} {[%emt 00:00:03]} 29. Bc4 {[%clk 00:00:06]} {[%emt 00:00:01]}
a5 {[%clk 00:00:40]} {[%emt 00:00:03]} 30. a3 {[%clk 00:00:07]} {[%emt
00:00:02]} Ba4 {[%clk 00:00:31]} {[%emt 00:00:11]} 31. axb4 {[%clk 00:00:06]}
{[%emt 00:00:03]} axb4 {[%clk 00:00:31]} {[%emt 00:00:01]} 32. b3 {[%clk
00:00:07]} Bd7 {[%clk 00:00:29]} {[%emt 00:00:04]} 33. Ra1 {[%clk 00:00:08]}
{[%emt 00:00:01]} Be6 {[%clk 00:00:22]} {[%emt 00:00:10]} 34. Ra7+ {[%clk
00:00:08]} {[%emt 00:00:01]} Kf8 {[%clk 00:00:19]} {[%emt 00:00:05]} 35. Bxe6
{[%clk 00:00:05]} {[%emt 00:00:06]} fxe6 {[%clk 00:00:20]} {[%emt 00:00:01]} 36.
Rb7 {[%clk 00:00:03]} {[%emt 00:00:03]} Rd3 {[%clk 00:00:21]} 37. Rxb4 {[%clk
00:00:04]} {[%emt 00:00:01]} Rxf3 {[%clk 00:00:22]} 38. Kg2 {[%clk 00:00:05]}
{[%emt 00:00:01]} Rc3 {[%clk 00:00:22]} {[%emt 00:00:02]} 39. Rb7 {[%clk
00:00:06]} {[%emt 00:00:01]} h5 {[%clk 00:00:22]} {[%emt 00:00:03]} 40. b4
{[%clk 00:00:07]} Rb3 {[%clk 00:00:23]} 41. b5 {[%clk 00:00:08]} Kg8 {[%clk
00:00:22]} {[%emt 00:00:02]} 42. b6 {[%clk 00:00:07]} {[%emt 00:00:03]} g5
{[%clk 00:00:21]} {[%emt 00:00:03]} 43. Kf2 {[%clk 00:00:06]} {[%emt 00:00:03]}
g4 {[%clk 00:00:20]} {[%emt 00:00:03]} 44. Ke2 {[%clk 00:00:04]} {[%emt
00:00:04]} Kh8 {[%clk 00:00:15]} {[%emt 00:00:07]} 45. Rb8+ {[%clk 00:00:04]}
{[%emt 00:00:02]} Kg7 {[%clk 00:00:15]} {[%emt 00:00:02]} 46. b7 {[%clk
00:00:06]} Kh7 {[%clk 00:00:15]} {[%emt 00:00:02]} 47. Kd2 {[%clk 00:00:05]}
{[%emt 00:00:02]} Kg7 {[%clk 00:00:15]} {[%emt 00:00:01]} 48. Kc2 {[%clk
00:00:07]} Rb6 {[%clk 00:00:16]} {[%emt 00:00:02]} 49. Kd3 {[%clk 00:00:06]}
{[%emt 00:00:02]} Rb1 {[%clk 00:00:17]} {[%emt 00:00:02]} 50. Kc4 {[%clk
00:00:06]} {[%emt 00:00:02]} Kh7 {[%clk 00:00:15]} {[%emt 00:00:03]} 51. Kc5
{[%clk 00:00:07]} {[%emt 00:00:02]} Kg7 {[%clk 00:00:15]} {[%emt 00:00:01]} 52.
Kd6 {[%clk 00:00:08]} {[%emt 00:00:01]} Rb6+ {[%clk 00:00:16]} {[%emt
00:00:02]} 53. Kc7 {[%clk 00:00:07]} {[%emt 00:00:04]} Rb1 {[%clk 00:00:15]}
{[%emt 00:00:03]} 54. Rc8 {[%clk 00:00:04]} {[%emt 00:00:04]} Rc1+ {[%clk
00:00:16]} {[%emt 00:00:02]} 55. Kd6 {[%clk 00:00:04]} {[%emt 00:00:02]} 1-0